[Event "Late-Titled-Tuesday-Blitz-June-25-2024"]
[Site "Chess.com"]
[Date "2024.06.25"]
[Round "1"]
[White "IndianSchoolOfSuffering"]
[Black "Azeryahu"]
[Result "0-1"]
[WhiteElo "2488"]
[BlackElo "2865"]
[TimeControl "180+1"]
[EndTime "14:07:10 PDT"]
[Termination "Azeryahu won by resignation"]

1. e4 {[%clk 0:02:58.1]} 1... e5 {[%clk 0:02:59.1]} 2. Nf3 {[%clk 0:02:57.4]}
2... Nc6 {[%clk 0:02:59]} 3. Bc4 {[%clk 0:02:53.8]} 3... Nf6 {[%clk 0:02:58.5]}
4. d3 {[%clk 0:02:51.8]} 4... d5 {[%clk 0:02:58.3]} 5. exd5 {[%clk 0:02:51.1]}
5... Nxd5 {[%clk 0:02:59]} 6. O-O {[%clk 0:02:50.4]} 6... Nb6 {[%clk 0:02:59.6]}
7. Bb3 {[%clk 0:02:49.7]} 7... Bg4 {[%clk 0:02:58]} 8. Re1 {[%clk 0:02:47]} 8...
Qe7 {[%clk 0:02:56]} 9. Nbd2 {[%clk 0:02:37.3]} 9... O-O-O {[%clk 0:02:53.4]}
10. a4 {[%clk 0:02:22]} 10... a5 {[%clk 0:02:51.5]} 11. c3 {[%clk 0:01:57.7]}
11... Rxd3 {[%clk 0:02:44.2]} 12. Qe2 {[%clk 0:01:50.1]} 12... Rd8 {[%clk
0:02:32.8]} 13. h3 {[%clk 0:01:44.5]} 13... Bh5 {[%clk 0:02:32.5]} 14. Ne4
{[%clk 0:01:43.5]} 14... f6 {[%clk 0:02:21.9]} 15. Be3 {[%clk 0:01:39.6]} 15...
Nd5 {[%clk 0:02:21.9]} 16. Bc5 {[%clk 0:01:37.8]} 16... Qe8 {[%clk 0:02:21.7]}
17. Rad1 {[%clk 0:01:33.3]} 17... Nf4 {[%clk 0:02:12.7]} 18. Qe3 {[%clk
0:01:33.1]} 18... Bxc5 {[%clk 0:01:54.5]} 19. Nxc5 {[%clk 0:01:29.2]} 19... Qe7
{[%clk 0:01:54.7]} 20. Rxd8+ {[%clk 0:01:17.7]} 20... Rxd8 {[%clk 0:01:54.3]}
21. Nh4 {[%clk 0:01:17.6]} 21... Nd5 {[%clk 0:01:01.1]} 22. Bxd5 {[%clk
0:00:38.7]} 22... Rxd5 {[%clk 0:01:01.1]} 23. Ne4 {[%clk 0:00:38.7]} 23... Qd7
{[%clk 0:00:56.2]} 24. g4 {[%clk 0:00:35.2]} 24... Bg6 {[%clk 0:00:37.5]} 25.
Ng3 {[%clk 0:00:34.8]} 25... Bc2 {[%clk 0:00:24.4]} 26. Nhf5 {[%clk 0:00:26.9]}
26... b6 {[%clk 0:00:12.1]} 27. Qe2 {[%clk 0:00:26.5]} 27... Bxa4 {[%clk
0:00:08.8]} 28. Ne3 {[%clk 0:00:23.4]} 28... Rd2 {[%clk 0:00:07.6]} 29. Qa6+
{[%clk 0:00:22.1]} 29... Kb8 {[%clk 0:00:07.7]} 30. Nc4 {[%clk 0:00:20.6]} 30...
Rd1 {[%clk 0:00:04.8]} 31. Rxd1 {[%clk 0:00:19.6]} 31... Bxd1 {[%clk 0:00:05.7]}
32. Ne3 {[%clk 0:00:16.7]} 32... Bb3 {[%clk 0:00:05.1]} 33. c4 {[%clk
0:00:16.1]} 33... Nd4 {[%clk 0:00:04.8]} 34. Nd5 {[%clk 0:00:15.9]} 34... Qc8
{[%clk 0:00:03.9]} 35. Qb5 {[%clk 0:00:15]} 35... Nxb5 {[%clk 0:00:03.4]} 0-1

[Event "Late-Titled-Tuesday-Blitz-June-25-2024"]
[Site "Chess.com"]
[Date "2024.06.25"]
[Round "1"]
[White "egnfanclub"]
[Black "ArtemDyachuk"]
[Result "1-0"]
[WhiteElo "2367"]
[BlackElo "2627"]
[TimeControl "180+1"]
[EndTime "14:07:10 PDT"]
[Termination "egnfanclub won on time"]

1. e4 {[%clk 0:02:51]} 1... e5 {[%clk 0:02:59.5]} 2. Nf3 {[%clk 0:02:49.9]} 2...
Nc6 {[%clk 0:02:59.5]} 3. Nc3 {[%clk 0:02:48.8]} 3... Nf6 {[%clk 0:02:58.9]} 4.
d4 {[%clk 0:02:49]} 4... exd4 {[%clk 0:02:59.8]} 5. Nd5 {[%clk 0:02:49.3]} 5...
Be7 {[%clk 0:02:43.7]} 6. Bf4 {[%clk 0:02:46.8]} 6... d6 {[%clk 0:02:41.4]} 7.
Bd3 {[%clk 0:02:14.5]} 7... O-O {[%clk 0:02:38.9]} 8. O-O {[%clk 0:02:14.1]}
8... Bg4 {[%clk 0:02:33.7]} 9. Nxe7+ {[%clk 0:02:03]} 9... Qxe7 {[%clk
0:02:32.9]} 10. h3 {[%clk 0:02:02.6]} 10... Bh5 {[%clk 0:02:32.2]} 11. Re1
{[%clk 0:01:58.9]} 11... Rfe8 {[%clk 0:02:16.6]} 12. Qd2 {[%clk 0:01:40.8]}
12... Bxf3 {[%clk 0:02:13.7]} 13. gxf3 {[%clk 0:01:41.7]} 13... Nh5 {[%clk
0:01:58.8]} 14. Bg3 {[%clk 0:01:28]} 14... Ne5 {[%clk 0:01:53]} 15. Be2 {[%clk
0:01:23.2]} 15... Ng6 {[%clk 0:01:30.4]} 16. f4 {[%clk 0:01:12.1]} 16... Nxg3
{[%clk 0:01:22.8]} 17. fxg3 {[%clk 0:01:13]} 17... Qxe4 {[%clk 0:01:21.1]} 18.
Bb5 {[%clk 0:01:07.9]} 18... Qf3 {[%clk 0:00:40]} 19. Bxe8 {[%clk 0:01:07.6]}
19... Qxg3+ {[%clk 0:00:39.7]} 20. Qg2 {[%clk 0:01:07]} 20... Qxf4 {[%clk
0:00:38.7]} 21. Qf2 {[%clk 0:00:46.7]} 21... Qg5+ {[%clk 0:00:22.2]} 22. Qg2
{[%clk 0:00:45.4]} 22... Qf4 {[%clk 0:00:21]} 23. Qf2 {[%clk 0:00:40.8]} 23...
Qg5+ {[%clk 0:00:20.8]} 24. Kf1 {[%clk 0:00:41.3]} 24... Nh8 {[%clk 0:00:01.8]}
25. Qxd4 {[%clk 0:00:29.1]} 25... Qf5+ {[%clk 0:00:01.6]} 26. Qf2 {[%clk
0:00:27.4]} 26... Qxh3+ {[%clk 0:00:01.5]} 27. Kg1 {[%clk 0:00:27.4]} 27... Qg4+
{[%clk 0:00:01.6]} 28. Qg2 {[%clk 0:00:27.6]} 28... Qd4+ {[%clk 0:00:02.2]} 29.
Kf1 {[%clk 0:00:25.5]} 29... Qc4+ {[%clk 0:00:01.9]} 30. Re2 {[%clk 0:00:19.6]}
30... Ng6 {[%clk 0:00:01.6]} 31. b3 {[%clk 0:00:12.8]} 31... Qf4+ {[%clk
0:00:01.1]} 32. Qf2 {[%clk 0:00:12]} 1-0

[Event "Late-Titled-Tuesday-Blitz-June-25-2024"]
[Site "Chess.com"]
[Date "2024.06.25"]
[Round "1"]
[White "harshu27"]
[Black "miraitrunks"]
[Result "1-0"]
[WhiteElo "2548"]
[BlackElo "2070"]
[TimeControl "180+1"]
[EndTime "14:07:12 PDT"]
[Termination "harshu27 won by resignation"]

1. d4 {[%clk 0:03:00.9]} 1... d6 {[%clk 0:02:58.6]} 2. Bf4 {[%clk 0:02:58]} 2...
Nd7 {[%clk 0:02:55.5]} 3. Nf3 {[%clk 0:02:56.8]} 3... c5 {[%clk 0:02:55.5]} 4.
d5 {[%clk 0:02:52.3]} 4... g6 {[%clk 0:02:54.8]} 5. c4 {[%clk 0:02:50.3]} 5...
Qb6 {[%clk 0:02:52.8]} 6. Qc2 {[%clk 0:02:47.8]} 6... Ngf6 {[%clk 0:02:40.7]} 7.
Nc3 {[%clk 0:02:47.4]} 7... Bg7 {[%clk 0:02:40.4]} 8. e4 {[%clk 0:02:47.3]} 8...
O-O {[%clk 0:02:38.3]} 9. Be2 {[%clk 0:02:47.2]} 9... e6 {[%clk 0:02:37]} 10.
O-O {[%clk 0:02:43]} 10... exd5 {[%clk 0:02:37]} 11. exd5 {[%clk 0:02:38.8]}
11... a6 {[%clk 0:02:36.8]} 12. Rfe1 {[%clk 0:02:37.4]} 12... Nh5 {[%clk
0:02:21.8]} 13. Be3 {[%clk 0:02:33.8]} 13... Qc7 {[%clk 0:02:19]} 14. Bf1 {[%clk
0:02:23.5]} 14... Ne5 {[%clk 0:02:16.9]} 15. Nxe5 {[%clk 0:02:22.6]} 15... Bxe5
{[%clk 0:02:17.8]} 16. g3 {[%clk 0:02:18.5]} 16... Bf5 {[%clk 0:02:07.2]} 17.
Bd3 {[%clk 0:02:16]} 17... Bxd3 {[%clk 0:02:06.9]} 18. Qxd3 {[%clk 0:02:16.9]}
18... Rfe8 {[%clk 0:01:58.3]} 19. f4 {[%clk 0:02:08.7]} 19... Bg7 {[%clk
0:01:45.9]} 20. Bf2 {[%clk 0:02:06.8]} 20... Rab8 {[%clk 0:01:40.1]} 21. a4
{[%clk 0:01:40]} 21... Nf6 {[%clk 0:01:39.4]} 22. Rad1 {[%clk 0:01:34.9]} 22...
Ng4 {[%clk 0:01:37.5]} 23. h3 {[%clk 0:01:29.1]} 23... Rxe1+ {[%clk 0:01:35]}
24. Bxe1 {[%clk 0:01:16.9]} 24... Bd4+ {[%clk 0:01:33.8]} 25. Kh1 {[%clk
0:01:14.1]} 25... Ne3 {[%clk 0:01:32.9]} 26. Rd2 {[%clk 0:01:12]} 26... Qe7
{[%clk 0:01:30.9]} 27. Re2 {[%clk 0:01:10.3]} 27... Re8 {[%clk 0:01:30.5]} 28.
Nd1 {[%clk 0:00:59.4]} 28... f5 {[%clk 0:01:00.6]} 29. Nxe3 {[%clk 0:00:35.4]}
29... Bxe3 {[%clk 0:00:53.9]} 30. Bd2 {[%clk 0:00:32.2]} 30... Qf6 {[%clk
0:00:47.2]} 31. Bxe3 {[%clk 0:00:27.4]} 31... Re4 {[%clk 0:00:37.2]} 32. Bf2
{[%clk 0:00:25.3]} 32... b5 {[%clk 0:00:22.7]} 33. axb5 {[%clk 0:00:23.9]} 33...
axb5 {[%clk 0:00:22.4]} 34. cxb5 {[%clk 0:00:21.5]} 34... c4 {[%clk 0:00:22.4]}
35. Qc2 {[%clk 0:00:21.8]} 35... c3 {[%clk 0:00:11.2]} 36. Rxe4 {[%clk
0:00:20.3]} 36... cxb2 {[%clk 0:00:10.3]} 37. Re1 {[%clk 0:00:19.4]} 1-0

[Event "Late-Titled-Tuesday-Blitz-June-25-2024"]
[Site "Chess.com"]
[Date "2024.06.25"]
[Round "1"]
[White "MagnusCarlsen"]
[Black "WPWPWP-2015"]
[Result "0-1"]
[WhiteElo "3164"]
[BlackElo "2548"]
[TimeControl "180+1"]
[EndTime "14:07:15 PDT"]
[Termination "WPWPWP-2015 won by resignation"]

1. d4 {[%clk 0:02:58.1]} 1... Nf6 {[%clk 0:02:58.5]} 2. Bf4 {[%clk 0:02:56.6]}
2... e6 {[%clk 0:02:57]} 3. Nc3 {[%clk 0:02:56]} 3... d5 {[%clk 0:02:50.7]} 4.
e3 {[%clk 0:02:53.2]} 4... a6 {[%clk 0:02:43.9]} 5. g4 {[%clk 0:02:47.3]} 5...
Bd6 {[%clk 0:02:39.6]} 6. g5 {[%clk 0:02:46.4]} 6... Ng8 {[%clk 0:02:35.4]} 7.
h4 {[%clk 0:02:44.1]} 7... Ne7 {[%clk 0:02:33.1]} 8. h5 {[%clk 0:02:44.1]} 8...
c5 {[%clk 0:02:26.4]} 9. Nf3 {[%clk 0:02:40.4]} 9... Nbc6 {[%clk 0:02:25.8]} 10.
h6 {[%clk 0:02:40.6]} 10... g6 {[%clk 0:02:24.9]} 11. Bxd6 {[%clk 0:02:38.9]}
11... Qxd6 {[%clk 0:02:24.7]} 12. Qd2 {[%clk 0:02:37.6]} 12... b5 {[%clk
0:02:20.3]} 13. O-O-O {[%clk 0:02:35.3]} 13... c4 {[%clk 0:02:05.5]} 14. e4
{[%clk 0:02:34.2]} 14... b4 {[%clk 0:02:04.3]} 15. Na4 {[%clk 0:02:33.9]} 15...
dxe4 {[%clk 0:01:53.5]} 16. Ne5 {[%clk 0:02:26.7]} 16... c3 {[%clk 0:01:23.1]}
17. Qf4 {[%clk 0:02:26.3]} 17... Nf5 {[%clk 0:01:16.2]} 18. Qxe4 {[%clk
0:02:20.7]} 18... cxb2+ {[%clk 0:01:14.1]} 19. Nxb2 {[%clk 0:02:20.3]} 19... Bb7
{[%clk 0:01:08]} 20. Bg2 {[%clk 0:02:09.7]} 20... Na5 {[%clk 0:00:45.9]} 21. d5
{[%clk 0:02:06.9]} 21... Bxd5 {[%clk 0:00:41.9]} 22. Qf3 {[%clk 0:01:58.2]}
22... Bxf3 {[%clk 0:00:37.3]} 23. Rxd6 {[%clk 0:01:57]} 23... Bxg2 {[%clk
0:00:36.6]} 24. Rhd1 {[%clk 0:01:52.4]} 24... Nxd6 {[%clk 0:00:36.4]} 25. Rxd6
{[%clk 0:01:53.3]} 25... O-O {[%clk 0:00:33.4]} 26. Nbd3 {[%clk 0:01:53]} 26...
Rfd8 {[%clk 0:00:32.3]} 27. Rb6 {[%clk 0:01:52.8]} 27... Rdb8 {[%clk 0:00:32]}
28. Rd6 {[%clk 0:01:52.3]} 28... Rd8 {[%clk 0:00:30.9]} 29. Rb6 {[%clk
0:01:52.1]} 29... Rdb8 {[%clk 0:00:30.4]} 30. Rd6 {[%clk 0:01:49.9]} 30... Bd5
{[%clk 0:00:23.9]} 31. Ng4 {[%clk 0:01:48.6]} 31... Nc4 {[%clk 0:00:22.6]} 32.
Nf6+ {[%clk 0:01:48.1]} 32... Kh8 {[%clk 0:00:22.6]} 33. Rd7 {[%clk 0:01:41.5]}
33... Rb7 {[%clk 0:00:23]} 34. Nc5 {[%clk 0:01:40]} 34... Rxd7 {[%clk
0:00:22.8]} 35. Ncxd7 {[%clk 0:01:40.9]} 35... Nd6 {[%clk 0:00:22.2]} 36. Kb2
{[%clk 0:01:40.2]} 36... Rd8 {[%clk 0:00:21.7]} 37. Ne5 {[%clk 0:01:40.2]} 37...
Rf8 {[%clk 0:00:19.8]} 38. a3 {[%clk 0:01:36.1]} 38... Nc4+ {[%clk 0:00:19.7]}
39. Nxc4 {[%clk 0:01:36.1]} 39... Bxc4 {[%clk 0:00:20.3]} 40. axb4 {[%clk
0:01:37]} 40... Rc8 {[%clk 0:00:19.4]} 41. f4 {[%clk 0:01:35.2]} 41... Bd5
{[%clk 0:00:19.3]} 42. c3 {[%clk 0:01:29.2]} 42... Bc4 {[%clk 0:00:19.2]} 43.
Kc2 {[%clk 0:01:29.2]} 43... Bb5 {[%clk 0:00:19.3]} 44. Kb3 {[%clk 0:01:27.4]}
44... Rc4 {[%clk 0:00:18.9]} 45. Nd7 {[%clk 0:01:22.6]} 45... Rxf4 {[%clk
0:00:17.8]} 46. Nb6 {[%clk 0:01:22.5]} 46... Rf5 {[%clk 0:00:17.7]} 47. c4
{[%clk 0:01:22.7]} 47... Bxc4+ {[%clk 0:00:18]} 48. Nxc4 {[%clk 0:01:18.3]}
48... Rxg5 {[%clk 0:00:18.3]} 49. Nd6 {[%clk 0:01:18.7]} 49... Kg8 {[%clk
0:00:18.7]} 50. Ka4 {[%clk 0:01:18.6]} 50... Rd5 {[%clk 0:00:17.6]} 51. Ne4
{[%clk 0:01:18.9]} 51... Kf8 {[%clk 0:00:17.2]} 52. Nc5 {[%clk 0:01:16.3]} 52...
Ke7 {[%clk 0:00:16.9]} 53. Nxa6 {[%clk 0:01:16.6]} 53... f5 {[%clk 0:00:17.1]}
54. b5 {[%clk 0:01:16]} 54... f4 {[%clk 0:00:17.3]} 55. b6 {[%clk 0:01:16.4]}
55... f3 {[%clk 0:00:17.3]} 56. Nb4 {[%clk 0:01:13.4]} 56... Rd7 {[%clk
0:00:17.5]} 57. Nc6+ {[%clk 0:01:12]} 57... Kf6 {[%clk 0:00:17.8]} 0-1

[Event "Late-Titled-Tuesday-Blitz-June-25-2024"]
[Site "Chess.com"]
[Date "2024.06.25"]
[Round "1"]
[White "hansen"]
[Black "King_Deded4d5"]
[Result "1-0"]
[WhiteElo "2989"]
[BlackElo "2508"]
[TimeControl "180+1"]
[EndTime "14:07:17 PDT"]
[Termination "hansen won by resignation"]

1. e4 {[%clk 0:02:59.9]} 1... c5 {[%clk 0:02:59.1]} 2. Nf3 {[%clk 0:02:59.8]}
2... e6 {[%clk 0:02:58.3]} 3. d4 {[%clk 0:02:59.8]} 3... cxd4 {[%clk 0:02:54.7]}
4. Nxd4 {[%clk 0:03:00.7]} 4... a6 {[%clk 0:02:54.2]} 5. a3 {[%clk 0:02:58.6]}
5... Nf6 {[%clk 0:02:46.6]} 6. Nc3 {[%clk 0:02:57.1]} 6... d6 {[%clk 0:02:37.2]}
7. Bc4 {[%clk 0:02:40.3]} 7... Be7 {[%clk 0:02:17.8]} 8. Ba2 {[%clk 0:02:39.9]}
8... Nc6 {[%clk 0:02:11.4]} 9. O-O {[%clk 0:02:39.6]} 9... O-O {[%clk
0:02:08.6]} 10. Be3 {[%clk 0:02:37.6]} 10... Qc7 {[%clk 0:01:58.1]} 11. f4
{[%clk 0:01:54.9]} 11... Nxd4 {[%clk 0:00:47.1]} 12. Bxd4 {[%clk 0:01:31.2]}
12... e5 {[%clk 0:00:46.5]} 13. Be3 {[%clk 0:01:24.7]} 13... Be6 {[%clk
0:00:37.4]} 14. f5 {[%clk 0:00:50.7]} 14... Bxa2 {[%clk 0:00:35.7]} 15. Rxa2
{[%clk 0:00:51.4]} 15... Rfd8 {[%clk 0:00:26.6]} 16. Qd3 {[%clk 0:00:19.5]}
16... b5 {[%clk 0:00:20.6]} 17. Rd1 {[%clk 0:00:16.3]} 17... Rac8 {[%clk
0:00:19.5]} 18. h3 {[%clk 0:00:16.3]} 18... Qb7 {[%clk 0:00:14.7]} 19. Bg5
{[%clk 0:00:15.1]} 19... h6 {[%clk 0:00:14.2]} 20. Bxf6 {[%clk 0:00:15.1]} 20...
Bxf6 {[%clk 0:00:14.7]} 21. Nd5 {[%clk 0:00:15.1]} 21... Rd7 {[%clk 0:00:08.6]}
22. c3 {[%clk 0:00:15]} 22... Kf8 {[%clk 0:00:06.7]} 23. Qf3 {[%clk 0:00:12.7]}
23... Ke8 {[%clk 0:00:04]} 24. Rd3 {[%clk 0:00:12.9]} 24... Kd8 {[%clk
0:00:02.3]} 25. Ra1 {[%clk 0:00:13.3]} 25... Rc6 {[%clk 0:00:01.4]} 26. Rad1
{[%clk 0:00:13.8]} 26... Kc8 {[%clk 0:00:01.4]} 27. Qh5 {[%clk 0:00:07.9]} 27...
Kb8 {[%clk 0:00:01.7]} 28. Nxf6 {[%clk 0:00:06.5]} 28... gxf6 {[%clk 0:00:01.4]}
29. Qxh6 {[%clk 0:00:07.2]} 29... Ka7 {[%clk 0:00:01.8]} 30. Qxf6 {[%clk
0:00:06.4]} 30... d5 {[%clk 0:00:02.2]} 31. Qxe5 {[%clk 0:00:06.6]} 31... Rcd6
{[%clk 0:00:01.4]} 32. Rxd5 {[%clk 0:00:06.8]} 32... Rxd5 {[%clk 0:00:01.4]} 33.
Rxd5 {[%clk 0:00:07.7]} 33... Rxd5 {[%clk 0:00:01.8]} 34. Qxd5 {[%clk
0:00:08.1]} 34... Qb6+ {[%clk 0:00:02.5]} 35. Qd4 {[%clk 0:00:08.8]} 35... Qxd4+
{[%clk 0:00:02.8]} 36. cxd4 {[%clk 0:00:09.7]} 1-0

[Event "Late-Titled-Tuesday-Blitz-June-25-2024"]
[Site "Chess.com"]
[Date "2024.06.25"]
[Round "1"]
[White "PoAslan"]
[Black "LikeWater"]
[Result "0-1"]
[WhiteElo "2408"]
[BlackElo "2705"]
[TimeControl "180+1"]
[EndTime "14:07:17 PDT"]
[Termination "LikeWater won by resignation"]

1. e4 {[%clk 0:03:00.9]} 1... e6 {[%clk 0:02:59.5]} 2. b3 {[%clk 0:02:53.3]}
2... d5 {[%clk 0:02:58.3]} 3. Bb2 {[%clk 0:02:53.7]} 3... dxe4 {[%clk
0:02:47.7]} 4. Nc3 {[%clk 0:02:53.3]} 4... Nf6 {[%clk 0:02:47.3]} 5. Qe2 {[%clk
0:02:52.7]} 5... Be7 {[%clk 0:02:42.2]} 6. O-O-O {[%clk 0:02:52.2]} 6... b6
{[%clk 0:02:37.2]} 7. Nxe4 {[%clk 0:02:51.8]} 7... Bb7 {[%clk 0:02:37.8]} 8.
Nxf6+ {[%clk 0:02:43.5]} 8... Bxf6 {[%clk 0:02:38.7]} 9. d4 {[%clk 0:02:43]}
9... O-O {[%clk 0:02:31.8]} 10. f4 {[%clk 0:02:42.8]} 10... Qd6 {[%clk
0:02:17.3]} 11. Qe3 {[%clk 0:02:32.8]} 11... Rd8 {[%clk 0:01:53.4]} 12. Nf3
{[%clk 0:02:30.7]} 12... Nc6 {[%clk 0:01:37.1]} 13. Kb1 {[%clk 0:02:08.9]} 13...
Ne7 {[%clk 0:01:16.8]} 14. Ne5 {[%clk 0:01:49.6]} 14... c5 {[%clk 0:01:04]} 15.
Bd3 {[%clk 0:01:43.6]} 15... cxd4 {[%clk 0:00:59.7]} 16. Qh3 {[%clk 0:01:38.3]}
16... g6 {[%clk 0:00:52.6]} 17. Ng4 {[%clk 0:01:07.2]} 17... Bg7 {[%clk
0:00:51.1]} 18. Nh6+ {[%clk 0:01:04.7]} 18... Kf8 {[%clk 0:00:46.6]} 19. Rhf1
{[%clk 0:01:01.7]} 19... Nd5 {[%clk 0:00:39.4]} 20. Nxf7 {[%clk 0:00:41.8]}
20... Kxf7 {[%clk 0:00:32.8]} 21. Qxh7 {[%clk 0:00:41.8]} 21... Ne7 {[%clk
0:00:31.9]} 22. f5 {[%clk 0:00:19.2]} 22... exf5 {[%clk 0:00:31.2]} 23. Qh4
{[%clk 0:00:13.7]} 23... Rh8 {[%clk 0:00:24.8]} 24. Qg5 {[%clk 0:00:12.6]} 24...
Rh5 {[%clk 0:00:23.2]} 25. Qd2 {[%clk 0:00:11.7]} 25... Rxh2 {[%clk 0:00:21.4]}
26. Rf2 {[%clk 0:00:11.8]} 26... Rah8 {[%clk 0:00:19.3]} 27. Rdf1 {[%clk
0:00:12.2]} 27... Rh1 {[%clk 0:00:18.3]} 28. a4 {[%clk 0:00:12.8]} 28... Rxf1+
{[%clk 0:00:18]} 29. Rxf1 {[%clk 0:00:13.4]} 29... Rh2 {[%clk 0:00:18.1]} 30.
Ka2 {[%clk 0:00:13.7]} 30... Rxg2 {[%clk 0:00:17.1]} 31. Bc4+ {[%clk 0:00:14.6]}
31... Kf8 {[%clk 0:00:15]} 32. Qd3 {[%clk 0:00:14.3]} 32... Bd5 {[%clk
0:00:13.3]} 33. Ba3 {[%clk 0:00:14.6]} 33... Bxc4 {[%clk 0:00:11.8]} 34. Qxc4
{[%clk 0:00:15.5]} 34... Qe5 {[%clk 0:00:08.5]} 35. Bb2 {[%clk 0:00:12.1]} 35...
Qc5 {[%clk 0:00:06.6]} 36. Qxc5 {[%clk 0:00:10.1]} 36... bxc5 {[%clk 0:00:07.5]}
37. Kb1 {[%clk 0:00:09.9]} 37... Nd5 {[%clk 0:00:07.1]} 0-1

[Event "Late-Titled-Tuesday-Blitz-June-25-2024"]
[Site "Chess.com"]
[Date "2024.06.25"]
[Round "1"]
[White "DmitriiZakurdaev"]
[Black "carokannlover213"]
[Result "0-1"]
[WhiteElo "2380"]
[BlackElo "2664"]
[TimeControl "180+1"]
[EndTime "14:07:19 PDT"]
[Termination "carokannlover213 won by resignation"]

1. d4 {[%clk 0:02:01.6]} 1... f5 {[%clk 0:02:56.5]} 2. c4 {[%clk 0:02:01.7]}
2... g6 {[%clk 0:02:55.7]} 3. Nc3 {[%clk 0:02:01.9]} 3... Bg7 {[%clk 0:02:56.3]}
4. g3 {[%clk 0:02:02]} 4... Nf6 {[%clk 0:02:54.5]} 5. Bg2 {[%clk 0:02:02.3]}
5... O-O {[%clk 0:02:55.4]} 6. Nh3 {[%clk 0:02:02.3]} 6... d6 {[%clk 0:02:54.9]}
7. d5 {[%clk 0:02:02.3]} 7... Na6 {[%clk 0:02:51.9]} 8. Nf4 {[%clk 0:01:59.5]}
8... Kh8 {[%clk 0:02:51.1]} 9. O-O {[%clk 0:01:59.4]} 9... Rb8 {[%clk
0:02:49.5]} 10. a4 {[%clk 0:01:55.6]} 10... Nc5 {[%clk 0:02:47.2]} 11. a5 {[%clk
0:01:54.2]} 11... e5 {[%clk 0:02:42.1]} 12. dxe6 {[%clk 0:01:50.9]} 12... Nxe6
{[%clk 0:02:42.5]} 13. Ncd5 {[%clk 0:01:48.8]} 13... c6 {[%clk 0:02:38.5]} 14.
Nc3 {[%clk 0:01:35]} 14... a6 {[%clk 0:02:24.8]} 15. Be3 {[%clk 0:01:34.2]}
15... Qe7 {[%clk 0:02:24.6]} 16. Qd2 {[%clk 0:01:31.8]} 16... Ng4 {[%clk
0:02:23.9]} 17. Bb6 {[%clk 0:01:31.6]} 17... Nxf4 {[%clk 0:02:20.7]} 18. Qxf4
{[%clk 0:01:31.3]} 18... Be6 {[%clk 0:02:21.3]} 19. Rfd1 {[%clk 0:01:26.5]}
19... Be5 {[%clk 0:02:20]} 20. Qd2 {[%clk 0:01:26.4]} 20... Bxc4 {[%clk
0:02:17.6]} 21. h3 {[%clk 0:01:23.1]} 21... Nf6 {[%clk 0:02:09.5]} 22. f4 {[%clk
0:01:22.9]} 22... Bxc3 {[%clk 0:02:09]} 23. Qxc3 {[%clk 0:01:22.9]} 23... Bd5
{[%clk 0:01:53.7]} 24. Rxd5 {[%clk 0:01:17.8]} 24... cxd5 {[%clk 0:01:54.6]} 25.
Bd4 {[%clk 0:01:16.8]} 25... Kg8 {[%clk 0:01:48.2]} 26. e3 {[%clk 0:01:16.2]}
26... Ne4 {[%clk 0:01:48]} 27. Qb3 {[%clk 0:01:15.1]} 27... Qf7 {[%clk
0:01:45.2]} 28. Kh2 {[%clk 0:01:15.1]} 28... Rbc8 {[%clk 0:01:44.3]} 29. Ra4
{[%clk 0:01:09.3]} 29... Rc4 {[%clk 0:01:42]} 30. Rb4 {[%clk 0:00:57]} 30...
Rxb4 {[%clk 0:01:34.8]} 31. Qxb4 {[%clk 0:00:57.9]} 31... Qd7 {[%clk 0:01:32.6]}
32. Qb3 {[%clk 0:00:48.6]} 32... Qb5 {[%clk 0:01:31.2]} 33. Qc2 {[%clk
0:00:42.5]} 33... Qxa5 {[%clk 0:01:26.2]} 34. b4 {[%clk 0:00:34.1]} 34... Qd8
{[%clk 0:01:16.7]} 35. Qb3 {[%clk 0:00:34.4]} 35... Qd7 {[%clk 0:01:05.4]} 36.
Qxd5+ {[%clk 0:00:34.4]} 36... Qf7 {[%clk 0:01:06]} 37. Bxe4 {[%clk 0:00:21.6]}
37... fxe4 {[%clk 0:01:06.9]} 38. Qxe4 {[%clk 0:00:19.8]} 38... h5 {[%clk
0:01:04.3]} 39. h4 {[%clk 0:00:20]} 39... Kh7 {[%clk 0:01:03.9]} 40. Qc2 {[%clk
0:00:15.7]} 40... d5 {[%clk 0:00:56.7]} 41. Be5 {[%clk 0:00:12]} 41... Qd7
{[%clk 0:00:54.2]} 42. Qb2 {[%clk 0:00:09.4]} 42... Rc8 {[%clk 0:00:53.3]} 43.
Bd4 {[%clk 0:00:09.9]} 43... Qf5 {[%clk 0:00:52.6]} 44. Kg1 {[%clk 0:00:06]}
44... Qc2 {[%clk 0:00:52.1]} 45. Qa3 {[%clk 0:00:01.9]} 45... Qc1+ {[%clk
0:00:51.4]} 46. Qxc1 {[%clk 0:00:01.3]} 46... Rxc1+ {[%clk 0:00:52.3]} 47. Kf2
{[%clk 0:00:01.6]} 47... Rc4 {[%clk 0:00:53.2]} 48. Bc5 {[%clk 0:00:01.7]} 48...
a5 {[%clk 0:00:52.9]} 49. Bd6 {[%clk 0:00:01.4]} 49... axb4 {[%clk 0:00:53.2]}
50. Be5 {[%clk 0:00:02.3]} 50... b3 {[%clk 0:00:54.1]} 51. Ke1 {[%clk
0:00:01.9]} 51... Rc2 {[%clk 0:00:53.8]} 52. Kd1 {[%clk 0:00:02.4]} 52... Rg2
{[%clk 0:00:54.4]} 53. Kc1 {[%clk 0:00:02]} 53... Rxg3 {[%clk 0:00:54.7]} 54. f5
{[%clk 0:00:02.3]} 54... Rxe3 {[%clk 0:00:55]} 55. fxg6+ {[%clk 0:00:02.6]}
55... Kxg6 {[%clk 0:00:55.3]} 56. Bd4 {[%clk 0:00:03.5]} 56... Re4 {[%clk
0:00:55.3]} 0-1